[Event "Late-Titled-Tuesday-Blitz-September-05-2023"]
[Site "Chess.com"]
[Date "2023.09.05"]
[Round "11"]
[White "kacprekt"]
[Black "queen_iryna"]
[Result "0-1"]
[WhiteElo "2418"]
[BlackElo "2354"]
[TimeControl "180+1"]
[EndTime "16:06:45 PDT"]
[Termination "queen_iryna won by resignation"]

1. d4 {[%clk 0:03:00.9]} 1... d6 {[%clk 0:02:56.4]} 2. e4 {[%clk 0:02:58.5]}
2... Nf6 {[%clk 0:02:55.6]} 3. Nc3 {[%clk 0:02:58.6]} 3... e5 {[%clk 0:02:56]}
4. Nge2 {[%clk 0:02:58.4]} 4... Nc6 {[%clk 0:02:55.3]} 5. h3 {[%clk 0:02:55.8]}
5... Be7 {[%clk 0:02:55.1]} 6. g4 {[%clk 0:02:54.8]} 6... O-O {[%clk 0:02:54.8]}
7. Bg2 {[%clk 0:02:55.2]} 7... Re8 {[%clk 0:02:54]} 8. O-O {[%clk 0:02:55.1]}
8... Bf8 {[%clk 0:02:54.1]} 9. Be3 {[%clk 0:02:54.8]} 9... exd4 {[%clk
0:02:51.5]} 10. Nxd4 {[%clk 0:02:54.5]} 10... Nxd4 {[%clk 0:02:44.1]} 11. Bxd4
{[%clk 0:02:53.7]} 11... Bd7 {[%clk 0:02:43.7]} 12. g5 {[%clk 0:02:52.2]} 12...
Nxe4 {[%clk 0:02:25.2]} 13. Nxe4 {[%clk 0:02:50.5]} 13... Bxh3 {[%clk
0:02:25.5]} 14. Nf6+ {[%clk 0:02:39.6]} 14... gxf6 {[%clk 0:02:24.3]} 15. Bxh3
{[%clk 0:02:35]} 15... fxg5 {[%clk 0:02:23.7]} 16. Bf5 {[%clk 0:02:30.5]} 16...
Bg7 {[%clk 0:02:20.8]} 17. Kg2 {[%clk 0:01:57.5]} 17... Bxd4 {[%clk 0:02:15.8]}
18. Qxd4 {[%clk 0:01:57.3]} 18... Re5 {[%clk 0:02:15.9]} 19. Bd3 {[%clk
0:01:51.2]} 19... Qf6 {[%clk 0:02:13]} 20. Rh1 {[%clk 0:01:39.8]} 20... h6
{[%clk 0:02:13]} 21. Rh3 {[%clk 0:01:35.6]} 21... Kg7 {[%clk 0:02:09.3]} 22.
Rah1 {[%clk 0:01:32.9]} 22... Rh8 {[%clk 0:02:07.9]} 23. Rf3 {[%clk 0:01:31.6]}
23... Rf5 {[%clk 0:01:52.1]} 24. Qxf6+ {[%clk 0:01:25.3]} 24... Rxf6 {[%clk
0:01:53]} 25. Rxf6 {[%clk 0:01:23.6]} 25... Kxf6 {[%clk 0:01:53.9]} 26. Rh5
{[%clk 0:01:18]} 26... Ke5 {[%clk 0:01:49.5]} 27. Kg3 {[%clk 0:01:04.5]} 27...
f5 {[%clk 0:01:49.2]} 28. f4+ {[%clk 0:01:04.7]} 28... gxf4+ {[%clk 0:01:40.3]}
29. Kf3 {[%clk 0:01:04.9]} 29... d5 {[%clk 0:01:22.6]} 30. Rxf5+ {[%clk
0:01:02.6]} 30... Ke6 {[%clk 0:01:21.6]} 31. Rxf4 {[%clk 0:01:01.7]} 31... h5
{[%clk 0:01:17.8]} 32. Bf5+ {[%clk 0:00:56.3]} 32... Ke5 {[%clk 0:01:17.1]} 33.
Bh3 {[%clk 0:00:53.3]} 33... h4 {[%clk 0:01:15.5]} 34. Rf5+ {[%clk 0:00:51.9]}
34... Kd6 {[%clk 0:01:11.2]} 35. Rf6+ {[%clk 0:00:52.2]} 35... Kc5 {[%clk
0:01:09.4]} 36. c3 {[%clk 0:00:48.4]} 36... Rg8 {[%clk 0:01:01.2]} 37. Bg4
{[%clk 0:00:47.7]} 37... a5 {[%clk 0:00:54.8]} 38. Rh6 {[%clk 0:00:37.2]} 38...
Rf8+ {[%clk 0:00:51.8]} 39. Ke3 {[%clk 0:00:32.9]} 39... Re8+ {[%clk 0:00:50.2]}
40. Kd3 {[%clk 0:00:28.4]} 40... b5 {[%clk 0:00:44.7]} 41. Rxh4 {[%clk
0:00:26.5]} 41... b4 {[%clk 0:00:43.3]} 42. cxb4+ {[%clk 0:00:21]} 42... axb4
{[%clk 0:00:44.2]} 43. Bf3 {[%clk 0:00:18.8]} 43... Ra8 {[%clk 0:00:40.1]} 44.
Rh5 {[%clk 0:00:12.8]} 44... c6 {[%clk 0:00:40.2]} 45. Bg4 {[%clk 0:00:05.6]}
45... Rxa2 {[%clk 0:00:37.5]} 46. Kc2 {[%clk 0:00:05.3]} 46... Ra7 {[%clk
0:00:30.8]} 47. Be6 {[%clk 0:00:05.2]} 47... Rg7 {[%clk 0:00:28.3]} 48. Rh2
{[%clk 0:00:04.7]} 48... Rg3 {[%clk 0:00:27.1]} 49. Bf5 {[%clk 0:00:04.6]} 49...
b3+ {[%clk 0:00:26.2]} 50. Kd2 {[%clk 0:00:05.1]} 50... Rf3 {[%clk 0:00:21.2]}
51. Bd3 {[%clk 0:00:05.1]} 51... Rf4 {[%clk 0:00:16.9]} 52. Kc3 {[%clk
0:00:04.9]} 52... Rb4 {[%clk 0:00:13.7]} 53. Rh5 {[%clk 0:00:05]} 53... Rb8
{[%clk 0:00:12.4]} 54. Be2 {[%clk 0:00:03.6]} 54... Kd6 {[%clk 0:00:11.5]} 55.
Bd1 {[%clk 0:00:03]} 55... c5 {[%clk 0:00:10.4]} 56. Bxb3 {[%clk 0:00:03.2]}
56... d4+ {[%clk 0:00:10.6]} 57. Kc4 {[%clk 0:00:02.7]} 57... Rb4+ {[%clk
0:00:10]} 58. Kd3 {[%clk 0:00:02.8]} 58... Rxb3+ {[%clk 0:00:10.4]} 59. Kc2
{[%clk 0:00:03.4]} 59... Rg3 {[%clk 0:00:10.4]} 60. Rh6+ {[%clk 0:00:03.6]}
60... Kd5 {[%clk 0:00:10.7]} 61. Rh5+ {[%clk 0:00:04.1]} 61... Kc4 {[%clk
0:00:11]} 62. Rf5 {[%clk 0:00:02.7]} 62... Rg2+ {[%clk 0:00:11.2]} 63. Kc1
{[%clk 0:00:02.7]} 63... Kb3 {[%clk 0:00:10.6]} 64. Rf3+ {[%clk 0:00:02.9]}
64... Kb4 {[%clk 0:00:10.1]} 65. Rh3 {[%clk 0:00:02.1]} 65... c4 {[%clk
0:00:10.2]} 66. Rf3 {[%clk 0:00:01.9]} 66... d3 {[%clk 0:00:10.5]} 67. b3 {[%clk
0:00:02.6]} 67... Kxb3 {[%clk 0:00:10.5]} 68. Rh3 {[%clk 0:00:02.2]} 68... Kc3
{[%clk 0:00:09.5]} 69. Kb1 {[%clk 0:00:01.9]} 69... Rg1+ {[%clk 0:00:09]} 70.
Ka2 {[%clk 0:00:02.2]} 70... Kc2 {[%clk 0:00:08.8]} 71. Rh4 {[%clk 0:00:02.8]}
71... c3 {[%clk 0:00:08.9]} 72. Rh2+ {[%clk 0:00:01.9]} 72... d2 {[%clk
0:00:09.3]} 73. Rf2 {[%clk 0:00:02.1]} 73... Kc1 {[%clk 0:00:09.2]} 74. Rf3
{[%clk 0:00:02.6]} 74... d1=Q {[%clk 0:00:08.7]} 75. Rxc3+ {[%clk 0:00:03.1]}
75... Qc2+ {[%clk 0:00:09]} 76. Rxc2+ {[%clk 0:00:02.5]} 76... Kxc2 {[%clk
0:00:09.9]} 77. Ka3 {[%clk 0:00:03.3]} 77... Rb1 {[%clk 0:00:10.5]} 0-1

[Event "Late-Titled-Tuesday-Blitz-September-05-2023"]
[Site "Chess.com"]
[Date "2023.09.05"]
[Round "11"]
[White "SEBAZZANO"]
[Black "OYAcosta"]
[Result "1-0"]
[WhiteElo "2207"]
[BlackElo "2255"]
[TimeControl "180+1"]
[EndTime "16:06:55 PDT"]
[Termination "SEBAZZANO won by resignation"]

1. d4 {[%clk 0:03:00.7]} 1... d5 {[%clk 0:03:00.1]} 2. Bf4 {[%clk 0:03:00.4]}
2... Nf6 {[%clk 0:02:59.5]} 3. e3 {[%clk 0:03:00.4]} 3... c5 {[%clk 0:03:00.1]}
4. c3 {[%clk 0:03:00.2]} 4... Nc6 {[%clk 0:03:00.8]} 5. Nd2 {[%clk 0:03:00]}
5... Qb6 {[%clk 0:03:01.5]} 6. Qb3 {[%clk 0:02:59.4]} 6... c4 {[%clk 0:03:02.1]}
7. Qc2 {[%clk 0:02:59.9]} 7... Bg4 {[%clk 0:03:02.7]} 8. Be2 {[%clk 0:02:59.5]}
8... Bxe2 {[%clk 0:03:02.4]} 9. Nxe2 {[%clk 0:03:00.4]} 9... e6 {[%clk
0:03:01.8]} 10. O-O {[%clk 0:03:00.3]} 10... Qd8 {[%clk 0:03:00.1]} 11. b3
{[%clk 0:02:57.8]} 11... cxb3 {[%clk 0:02:59]} 12. axb3 {[%clk 0:02:57.6]} 12...
Bd6 {[%clk 0:02:58.7]} 13. Bxd6 {[%clk 0:02:48.1]} 13... Qxd6 {[%clk 0:02:57.6]}
14. e4 {[%clk 0:02:48.4]} 14... dxe4 {[%clk 0:02:55.5]} 15. Nxe4 {[%clk
0:02:49.3]} 15... Nxe4 {[%clk 0:02:55.8]} 16. Qxe4 {[%clk 0:02:50]} 16... O-O
{[%clk 0:02:56]} 17. Rfd1 {[%clk 0:02:42.5]} 17... Rfd8 {[%clk 0:02:44.5]} 18.
Rd3 {[%clk 0:02:36.2]} 18... Qc7 {[%clk 0:02:33.6]} 19. Rh3 {[%clk 0:02:32.1]}
19... g6 {[%clk 0:02:31.2]} 20. Qe3 {[%clk 0:02:23.7]} 20... Rd5 {[%clk
0:01:55.5]} 21. Qh6 {[%clk 0:02:13.9]} 21... f6 {[%clk 0:01:55.9]} 22. Nf4
{[%clk 0:01:59.1]} 22... Rd6 {[%clk 0:01:18.3]} 23. Nxg6 {[%clk 0:01:49.5]}
23... Qg7 {[%clk 0:01:18.3]} 24. Qxg7+ {[%clk 0:01:34.4]} 24... Kxg7 {[%clk
0:01:18.4]} 25. Nf4 {[%clk 0:01:34.9]} 25... e5 {[%clk 0:01:15.2]} 26. dxe5
{[%clk 0:01:28.6]} 26... fxe5 {[%clk 0:01:15.4]} 27. Rg3+ {[%clk 0:01:25.5]}
27... Kf7 {[%clk 0:01:15.3]} 28. Nh3 {[%clk 0:01:16.3]} 28... Rad8 {[%clk
0:01:15.7]} 29. Rf1 {[%clk 0:01:11.4]} 29... h6 {[%clk 0:01:14.6]} 30. f4 {[%clk
0:01:10.8]} 30... e4 {[%clk 0:01:14.6]} 31. Re3 {[%clk 0:01:09.8]} 31... Re8
{[%clk 0:01:12.4]} 32. f5 {[%clk 0:01:09.3]} 32... Rd3 {[%clk 0:01:09.7]} 33.
Rfe1 {[%clk 0:01:04.7]} 33... Rxe3 {[%clk 0:01:09.7]} 34. Rxe3 {[%clk
0:01:04.5]} 34... Kf6 {[%clk 0:01:10]} 35. g4 {[%clk 0:00:59.4]} 35... Ne5
{[%clk 0:01:08.1]} 36. Nf2 {[%clk 0:00:53.5]} 36... Nf3+ {[%clk 0:01:05]} 37.
Kg2 {[%clk 0:00:53.3]} 37... Kg5 {[%clk 0:00:59.1]} 38. Nxe4+ {[%clk 0:00:49.3]}
38... Kf4 {[%clk 0:00:52.3]} 39. Rxf3+ {[%clk 0:00:45.1]} 39... Kxe4 {[%clk
0:00:51.9]} 40. h4 {[%clk 0:00:39.9]} 40... Rd8 {[%clk 0:00:49.4]} 41. Kg3
{[%clk 0:00:38.2]} 41... Rd1 {[%clk 0:00:47.3]} 42. Rf2 {[%clk 0:00:28.4]} 42...
Rg1+ {[%clk 0:00:45.9]} 43. Kh2 {[%clk 0:00:28.1]} 43... Rxg4 {[%clk 0:00:45.2]}
44. f6 {[%clk 0:00:27.7]} 44... Rg8 {[%clk 0:00:45.5]} 45. Kh3 {[%clk 0:00:21]}
45... h5 {[%clk 0:00:42]} 46. f7 {[%clk 0:00:19.6]} 46... Rf8 {[%clk 0:00:42.4]}
47. Kg3 {[%clk 0:00:20.1]} 47... Ke5 {[%clk 0:00:42.6]} 48. Rf3 {[%clk
0:00:14.8]} 48... b5 {[%clk 0:00:42.8]} 49. c4 {[%clk 0:00:14.1]} 49... bxc4
{[%clk 0:00:42.1]} 50. bxc4 {[%clk 0:00:15]} 50... a5 {[%clk 0:00:41.5]} 51. Ra3
{[%clk 0:00:13.6]} 51... Rxf7 {[%clk 0:00:29.4]} 52. Rxa5+ {[%clk 0:00:13.2]}
52... Ke4 {[%clk 0:00:24.1]} 53. Rxh5 {[%clk 0:00:14.1]} 53... Rg7+ {[%clk
0:00:23.1]} 54. Rg5 {[%clk 0:00:14.1]} 54... Rc7 {[%clk 0:00:23.7]} 55. c5
{[%clk 0:00:13.5]} 55... Ra7 {[%clk 0:00:21]} 56. Kg4 {[%clk 0:00:13.3]} 56...
Rh7 {[%clk 0:00:19.9]} 57. h5 {[%clk 0:00:13.2]} 57... Rf7 {[%clk 0:00:19.6]}
58. Rg6 {[%clk 0:00:11.9]} 58... Kd5 {[%clk 0:00:18.9]} 59. c6 {[%clk
0:00:11.9]} 59... Rf1 {[%clk 0:00:18.1]} 60. Kg5 {[%clk 0:00:11.8]} 60... Rg1+
{[%clk 0:00:15.7]} 61. Kh6 {[%clk 0:00:11.9]} 61... Rh1 {[%clk 0:00:16.3]} 62.
Rf6 {[%clk 0:00:10.7]} 62... Ke5 {[%clk 0:00:15.8]} 63. Rg6 {[%clk 0:00:10.8]}
63... Kf5 {[%clk 0:00:16.1]} 64. c7 {[%clk 0:00:10.7]} 64... Rc1 {[%clk
0:00:16.1]} 65. Rg7 {[%clk 0:00:10.7]} 65... Kf6 {[%clk 0:00:16.5]} 66. Kh7
{[%clk 0:00:10.5]} 66... Rc2 {[%clk 0:00:15.8]} 67. h6 {[%clk 0:00:10.7]} 67...
Rc3 {[%clk 0:00:12.6]} 68. Rd7 {[%clk 0:00:10.1]} 68... Ke6 {[%clk 0:00:12.3]}
69. Rg7 {[%clk 0:00:09.8]} 69... Kf6 {[%clk 0:00:12.7]} 70. Kg8 {[%clk
0:00:08.9]} 70... Rc1 {[%clk 0:00:05]} 71. h7 {[%clk 0:00:08.2]} 71... Rc2
{[%clk 0:00:05.1]} 72. h8=Q {[%clk 0:00:07.3]} 72... Ke6 {[%clk 0:00:05.8]} 73.
Qh6+ {[%clk 0:00:06.6]} 73... Kd5 {[%clk 0:00:05.1]} 74. Qg5+ {[%clk 0:00:06.3]}
74... Kc6 {[%clk 0:00:05.1]} 75. c8=Q+ {[%clk 0:00:05.9]} 75... Kb6 {[%clk
0:00:05.6]} 76. Qg1+ {[%clk 0:00:04.8]} 1-0

[Event "Late-Titled-Tuesday-Blitz-September-05-2023"]
[Site "Chess.com"]
[Date "2023.09.05"]
[Round "11"]
[White "Aradhya2000"]
[Black "TheRigos"]
[Result "0-1"]
[WhiteElo "2698"]
[BlackElo "2588"]
[TimeControl "180+1"]
[EndTime "16:07:02 PDT"]
[Termination "TheRigos won by checkmate"]

1. d4 {[%clk 0:03:00.9]} 1... Nf6 {[%clk 0:02:58]} 2. c4 {[%clk 0:03:01.5]} 2...
g6 {[%clk 0:02:56.5]} 3. g3 {[%clk 0:03:00.6]} 3... Bg7 {[%clk 0:02:56.3]} 4.
Bg2 {[%clk 0:03:01.3]} 4... O-O {[%clk 0:02:57]} 5. Nc3 {[%clk 0:03:01.8]} 5...
d6 {[%clk 0:02:57]} 6. Nf3 {[%clk 0:03:01.9]} 6... Nc6 {[%clk 0:02:57.4]} 7. O-O
{[%clk 0:03:02.1]} 7... a6 {[%clk 0:02:58.1]} 8. Bf4 {[%clk 0:03:00.1]} 8... h6
{[%clk 0:02:56.1]} 9. h3 {[%clk 0:02:48.8]} 9... Bd7 {[%clk 0:02:50.5]} 10. Rc1
{[%clk 0:02:45.2]} 10... Rb8 {[%clk 0:02:49.5]} 11. d5 {[%clk 0:02:44.6]} 11...
Na5 {[%clk 0:02:49.2]} 12. c5 {[%clk 0:02:44.6]} 12... g5 {[%clk 0:02:32.6]} 13.
Bd2 {[%clk 0:02:43.7]} 13... Nc4 {[%clk 0:02:21.9]} 14. cxd6 {[%clk 0:02:39]}
14... exd6 {[%clk 0:02:13.7]} 15. b3 {[%clk 0:02:38.9]} 15... Nxd2 {[%clk
0:02:07.1]} 16. Qxd2 {[%clk 0:02:39.8]} 16... Re8 {[%clk 0:02:05.5]} 17. h4
{[%clk 0:02:40.1]} 17... g4 {[%clk 0:01:58.6]} 18. Nd4 {[%clk 0:02:40.1]} 18...
Qe7 {[%clk 0:01:45.9]} 19. e3 {[%clk 0:02:33.1]} 19... Rbc8 {[%clk 0:01:45.6]}
20. Rc2 {[%clk 0:02:20.6]} 20... Qe5 {[%clk 0:01:44.3]} 21. Rfc1 {[%clk
0:02:20.5]} 21... c5 {[%clk 0:01:30]} 22. Nde2 {[%clk 0:01:59]} 22... Bf5 {[%clk
0:01:27.7]} 23. Rb2 {[%clk 0:01:55.5]} 23... Ne4 {[%clk 0:01:19.9]} 24. Nxe4
{[%clk 0:01:49]} 24... Qxb2 {[%clk 0:01:09.7]} 25. Qxb2 {[%clk 0:01:48.1]} 25...
Bxb2 {[%clk 0:01:09.4]} 26. Nxd6 {[%clk 0:01:48.8]} 26... Bxc1 {[%clk
0:01:07.6]} 27. Nxc1 {[%clk 0:01:48.9]} 27... Bc2 {[%clk 0:00:59.5]} 28. Kf1
{[%clk 0:01:44.6]} 28... b5 {[%clk 0:00:58.2]} 29. Ke2 {[%clk 0:01:43.3]} 29...
Red8 {[%clk 0:00:52.7]} 30. Nxc8 {[%clk 0:01:42.6]} 30... Rxc8 {[%clk 0:00:53]}
31. e4 {[%clk 0:01:39.4]} 31... c4 {[%clk 0:00:50.7]} 32. Kd2 {[%clk 0:01:38.7]}
32... Bb1 {[%clk 0:00:46.2]} 33. d6 {[%clk 0:01:29.3]} 33... Kf8 {[%clk
0:00:42.3]} 34. Ne2 {[%clk 0:01:19.3]} 34... Bxa2 {[%clk 0:00:40.9]} 35. b4
{[%clk 0:01:18.6]} 35... a5 {[%clk 0:00:38.8]} 36. Kc3 {[%clk 0:01:17.8]} 36...
axb4+ {[%clk 0:00:20.6]} 37. Kxb4 {[%clk 0:01:17.8]} 37... c3 {[%clk 0:00:19.8]}
38. d7 {[%clk 0:00:57.2]} 38... Rc4+ {[%clk 0:00:19.8]} 39. Kxb5 {[%clk
0:00:57.3]} 39... Ke7 {[%clk 0:00:19.4]} 40. e5 {[%clk 0:00:58]} 40... c2 {[%clk
0:00:17.9]} 41. Bd5 {[%clk 0:00:56.9]} 41... c1=Q {[%clk 0:00:06.7]} 42. Nxc1
{[%clk 0:00:56.6]} 42... Rxc1 {[%clk 0:00:07.6]} 43. Bxa2 {[%clk 0:00:56.8]}
43... Rc2 {[%clk 0:00:06.7]} 44. Bxf7 {[%clk 0:00:56.1]} 44... Kxd7 {[%clk
0:00:05.3]} 45. Bh5 {[%clk 0:00:48.8]} 45... Rxf2 {[%clk 0:00:05.5]} 46. Bxg4+
{[%clk 0:00:49.1]} 46... Ke7 {[%clk 0:00:06.1]} 47. Bc8 {[%clk 0:00:45.2]} 47...
Rg2 {[%clk 0:00:05.9]} 48. g4 {[%clk 0:00:45.4]} 48... Re2 {[%clk 0:00:04.8]}
49. e6 {[%clk 0:00:43.9]} 49... Re5+ {[%clk 0:00:03.6]} 50. Kb6 {[%clk
0:00:43.5]} 50... Re4 {[%clk 0:00:04.5]} 51. g5 {[%clk 0:00:42.9]} 51... h5
{[%clk 0:00:04.6]} 52. Kc5 {[%clk 0:00:12.1]} 52... Rxh4 {[%clk 0:00:05.5]} 53.
Kd5 {[%clk 0:00:12.6]} 53... Rg4 {[%clk 0:00:06]} 54. Ke5 {[%clk 0:00:12.8]}
54... Rxg5+ {[%clk 0:00:05.9]} 55. Kf4 {[%clk 0:00:13]} 55... Rg1 {[%clk
0:00:05.6]} 56. Kf3 {[%clk 0:00:10.9]} 56... h4 {[%clk 0:00:05.9]} 57. Kf2
{[%clk 0:00:11.5]} 57... Rg8 {[%clk 0:00:05.6]} 58. Bb7 {[%clk 0:00:10.4]} 58...
h3 {[%clk 0:00:06.1]} 59. Be4 {[%clk 0:00:08.8]} 59... Kxe6 {[%clk 0:00:05.1]}
60. Bf3 {[%clk 0:00:06.3]} 60... Ke5 {[%clk 0:00:05]} 61. Bd1 {[%clk 0:00:05.6]}
61... Kf4 {[%clk 0:00:05.3]} 62. Bb3 {[%clk 0:00:05.4]} 62... Rg5 {[%clk
0:00:04.3]} 63. Ba4 {[%clk 0:00:04.8]} 63... Rg3 {[%clk 0:00:04]} 64. Bc6 {[%clk
0:00:04.7]} 64... Kg4 {[%clk 0:00:04]} 65. Bd7+ {[%clk 0:00:04.7]} 65... Kf4
{[%clk 0:00:03.7]} 66. Bc6 {[%clk 0:00:05.1]} 66... Rc3 {[%clk 0:00:04.2]} 67.
Bd5 {[%clk 0:00:04.4]} 67... Rc2+ {[%clk 0:00:04.5]} 68. Kg1 {[%clk 0:00:04.6]}
68... Kg3 {[%clk 0:00:05]} 69. Kf1 {[%clk 0:00:05.2]} 69... Rc1+ {[%clk
0:00:05.1]} 70. Ke2 {[%clk 0:00:05]} 70... h2 {[%clk 0:00:06]} 71. Kd2 {[%clk
0:00:05.3]} 71... Ra1 {[%clk 0:00:06.9]} 72. Ke2 {[%clk 0:00:05.6]} 72... h1=Q
{[%clk 0:00:06.6]} 73. Bxh1 {[%clk 0:00:05.2]} 73... Rxh1 {[%clk 0:00:07.5]} 74.
Kd3 {[%clk 0:00:05.7]} 74... Re1 {[%clk 0:00:07.6]} 75. Kc4 {[%clk 0:00:06.6]}
75... Kf4 {[%clk 0:00:07.8]} 76. Kb5 {[%clk 0:00:07.5]} 76... Rc1 {[%clk
0:00:08]} 77. Ka6 {[%clk 0:00:08.4]} 77... Ke4 {[%clk 0:00:08.9]} 78. Kb7 {[%clk
0:00:09.3]} 78... Kd5 {[%clk 0:00:09]} 79. Kb6 {[%clk 0:00:09]} 79... Rc5 {[%clk
0:00:09.7]} 80. Kb7 {[%clk 0:00:09.1]} 80... Rc6 {[%clk 0:00:10.3]} 81. Ka7
{[%clk 0:00:09.2]} 81... Kc5 {[%clk 0:00:10.3]} 82. Kb7 {[%clk 0:00:09.8]} 82...
Kb5 {[%clk 0:00:11]} 83. Ka7 {[%clk 0:00:10.1]} 83... Rb6 {[%clk 0:00:11.4]} 84.
Ka8 {[%clk 0:00:10.3]} 84... Kc6 {[%clk 0:00:12.3]} 85. Ka7 {[%clk 0:00:10.6]}
85... Kc7 {[%clk 0:00:13.2]} 86. Ka8 {[%clk 0:00:10.7]} 86... Ra6# {[%clk
0:00:14.1]} 0-1

[Event "Late-Titled-Tuesday-Blitz-September-05-2023"]
[Site "Chess.com"]
[Date "2023.09.05"]
[Round "11"]
[White "szachuspl"]
[Black "ameetghasi100"]
[Result "0-1"]
[WhiteElo "2548"]
[BlackElo "2692"]
[TimeControl "180+1"]
[EndTime "16:07:25 PDT"]
[Termination "ameetghasi100 won on time"]

1. d4 {[%clk 0:03:00.9]} 1... Nf6 {[%clk 0:02:59.7]} 2. c4 {[%clk 0:03:00.5]}
2... g6 {[%clk 0:02:59.9]} 3. Nc3 {[%clk 0:03:00.4]} 3... Bg7 {[%clk 0:03:00.5]}
4. e4 {[%clk 0:03:00.8]} 4... d6 {[%clk 0:03:01.1]} 5. Be2 {[%clk 0:03:01.2]}
5... O-O {[%clk 0:03:01.1]} 6. Nf3 {[%clk 0:03:01.4]} 6... Bg4 {[%clk
0:03:00.5]} 7. Be3 {[%clk 0:02:59.3]} 7... a6 {[%clk 0:02:58.8]} 8. O-O {[%clk
0:02:58.2]} 8... Nfd7 {[%clk 0:02:58.1]} 9. h3 {[%clk 0:02:54.3]} 9... Bxf3
{[%clk 0:02:58]} 10. Bxf3 {[%clk 0:02:54.9]} 10... c5 {[%clk 0:02:58.5]} 11. d5
{[%clk 0:02:54.8]} 11... b5 {[%clk 0:02:59]} 12. Be2 {[%clk 0:02:46.4]} 12...
Qa5 {[%clk 0:02:55.6]} 13. Bd2 {[%clk 0:02:42.5]} 13... bxc4 {[%clk 0:02:36.7]}
14. Bxc4 {[%clk 0:02:40.7]} 14... Qb4 {[%clk 0:02:30.7]} 15. Qe2 {[%clk
0:02:23.6]} 15... Ne5 {[%clk 0:02:12.8]} 16. Bb3 {[%clk 0:02:18.7]} 16... c4
{[%clk 0:02:04]} 17. Bc2 {[%clk 0:02:18.7]} 17... Qxb2 {[%clk 0:01:57.4]} 18.
Rfc1 {[%clk 0:02:16.7]} 18... Nbd7 {[%clk 0:01:38.5]} 19. Rab1 {[%clk
0:02:00.2]} 19... Qa3 {[%clk 0:01:38]} 20. f4 {[%clk 0:02:00.2]} 20... Nd3
{[%clk 0:01:37.9]} 21. Bxd3 {[%clk 0:01:59.7]} 21... cxd3 {[%clk 0:01:38.8]} 22.
Qxd3 {[%clk 0:02:00.1]} 22... Nc5 {[%clk 0:01:32]} 23. Qf3 {[%clk 0:01:59.2]}
23... Rab8 {[%clk 0:01:29.1]} 24. Kh2 {[%clk 0:01:55.4]} 24... Rb2 {[%clk
0:01:12.1]} 25. Rxb2 {[%clk 0:01:31.5]} 25... Qxb2 {[%clk 0:01:13]} 26. Qe3
{[%clk 0:01:30.9]} 26... Rc8 {[%clk 0:01:03.4]} 27. Rb1 {[%clk 0:01:10.7]} 27...
Qa3 {[%clk 0:00:53.2]} 28. e5 {[%clk 0:01:10.1]} 28... dxe5 {[%clk 0:00:29]} 29.
fxe5 {[%clk 0:01:09.9]} 29... e6 {[%clk 0:00:29.5]} 30. d6 {[%clk 0:01:00.6]}
30... Nd7 {[%clk 0:00:29.1]} 31. Rb3 {[%clk 0:00:56.9]} 31... Qa5 {[%clk
0:00:27.1]} 32. Kh1 {[%clk 0:00:45.1]} 32... Qxe5 {[%clk 0:00:18]} 33. Qxe5
{[%clk 0:00:38.2]} 33... Bxe5 {[%clk 0:00:18.9]} 34. Ne4 {[%clk 0:00:38.8]}
34... f5 {[%clk 0:00:17.7]} 35. Ng5 {[%clk 0:00:39]} 35... Rc2 {[%clk
0:00:13.2]} 36. Be3 {[%clk 0:00:33.3]} 36... f4 {[%clk 0:00:06.1]} 37. Bg1
{[%clk 0:00:21.5]} 37... Rc1 {[%clk 0:00:06.1]} 38. Rb7 {[%clk 0:00:18.4]} 38...
Bd4 {[%clk 0:00:06.3]} 39. Nf3 {[%clk 0:00:18.8]} 39... Bxg1 {[%clk 0:00:04.2]}
40. Nxg1 {[%clk 0:00:19.1]} 40... Nf6 {[%clk 0:00:04.6]} 41. g4 {[%clk
0:00:14.1]} 41... g5 {[%clk 0:00:04]} 42. Re7 {[%clk 0:00:13.3]} 42... Rd1
{[%clk 0:00:03.7]} 43. Rxe6 {[%clk 0:00:13.4]} 43... Kf7 {[%clk 0:00:04.6]} 44.
Re7+ {[%clk 0:00:13.7]} 44... Kf8 {[%clk 0:00:05.1]} 45. Re6 {[%clk 0:00:14.2]}
45... Nd7 {[%clk 0:00:04]} 46. Kg2 {[%clk 0:00:14.1]} 46... Nc5 {[%clk
0:00:04.3]} 47. Rf6+ {[%clk 0:00:13.3]} 47... Kg7 {[%clk 0:00:04.7]} 48. Rf5
{[%clk 0:00:13]} 48... Ne6 {[%clk 0:00:05.1]} 49. Nf3 {[%clk 0:00:11.9]} 49...
h6 {[%clk 0:00:05.4]} 50. Ra5 {[%clk 0:00:07.2]} 50... Rxd6 {[%clk 0:00:05.9]}
51. Kf2 {[%clk 0:00:07.7]} 51... Rb6 {[%clk 0:00:06.4]} 52. Ke2 {[%clk
0:00:07.5]} 52... Kf6 {[%clk 0:00:06.6]} 53. Kd3 {[%clk 0:00:06.7]} 53... Rd6+
{[%clk 0:00:06.1]} 54. Ke4 {[%clk 0:00:05.2]} 54... Rb6 {[%clk 0:00:06.5]} 55.
Rf5+ {[%clk 0:00:04.8]} 55... Ke7 {[%clk 0:00:06.1]} 56. Ra5 {[%clk 0:00:05]}
56... Kd6 {[%clk 0:00:06.3]} 57. Kf5 {[%clk 0:00:04.5]} 57... Ke7 {[%clk
0:00:06]} 58. Ne5 {[%clk 0:00:03.8]} 58... Ng7+ {[%clk 0:00:05.9]} 59. Ke4
{[%clk 0:00:04.2]} 59... Ne6 {[%clk 0:00:06.3]} 60. Ng6+ {[%clk 0:00:04.3]}
60... Kf6 {[%clk 0:00:06.5]} 61. Ne5 {[%clk 0:00:05.2]} 61... Rd6 {[%clk
0:00:06.4]} 62. Nc4 {[%clk 0:00:04.5]} 62... Rd4+ {[%clk 0:00:06.5]} 63. Kf3
{[%clk 0:00:04.9]} 63... Rxc4 {[%clk 0:00:07.4]} 64. Rxa6 {[%clk 0:00:05.5]}
64... Rc3+ {[%clk 0:00:07.9]} 65. Ke4 {[%clk 0:00:05.5]} 65... Re3+ {[%clk
0:00:08.2]} 66. Kd5 {[%clk 0:00:06.1]} 66... Re5+ {[%clk 0:00:08.8]} 67. Kd6
{[%clk 0:00:06.2]} 67... f3 {[%clk 0:00:09.7]} 68. Ra3 {[%clk 0:00:05.6]} 68...
Nd4 {[%clk 0:00:06.9]} 69. Ra8 {[%clk 0:00:05.8]} 69... Re6+ {[%clk 0:00:06.6]}
70. Kd5 {[%clk 0:00:05.9]} 70... Ne2 {[%clk 0:00:05.6]} 71. Rf8+ {[%clk
0:00:05.7]} 71... Ke7 {[%clk 0:00:06]} 72. Rxf3 {[%clk 0:00:06.2]} 72... Nf4+
{[%clk 0:00:06.7]} 73. Kc5 {[%clk 0:00:05.9]} 73... Ra6 {[%clk 0:00:06.8]} 74.
a3 {[%clk 0:00:05]} 74... Ra4 {[%clk 0:00:06]} 75. Kb5 {[%clk 0:00:05.3]} 75...
Ra8 {[%clk 0:00:06]} 76. a4 {[%clk 0:00:05.7]} 76... Ke6 {[%clk 0:00:05.3]} 77.
a5 {[%clk 0:00:05.9]} 77... Ke5 {[%clk 0:00:05.7]} 78. a6 {[%clk 0:00:06.5]}
78... Nd5 {[%clk 0:00:04.8]} 79. Rf5+ {[%clk 0:00:05]} 79... Kd6 {[%clk
0:00:04.6]} 80. Rf1 {[%clk 0:00:02.8]} 80... Nc7+ {[%clk 0:00:04.6]} 81. Kc4
{[%clk 0:00:03.2]} 81... Rxa6 {[%clk 0:00:05.1]} 82. Rf6+ {[%clk 0:00:03.4]}
82... Kd7 {[%clk 0:00:04.9]} 83. Rf7+ {[%clk 0:00:03.7]} 83... Kd8 {[%clk
0:00:04.4]} 84. Rh7 {[%clk 0:00:03.3]} 84... Ne8 {[%clk 0:00:04]} 85. Kd4 {[%clk
0:00:02.2]} 85... Rd6+ {[%clk 0:00:03.1]} 86. Ke5 {[%clk 0:00:02]} 86... Rb6
{[%clk 0:00:03.4]} 87. Rh8 {[%clk 0:00:02.4]} 87... Ke7 {[%clk 0:00:03.6]} 88.
Rh7+ {[%clk 0:00:02.4]} 88... Kf8 {[%clk 0:00:04.1]} 89. Kf5 {[%clk 0:00:02.3]}
89... Ng7+ {[%clk 0:00:04.1]} 90. Ke5 {[%clk 0:00:01.9]} 90... Kg8 {[%clk
0:00:04.7]} 0-1